Cogmind - Beta 13 @@@ ROGUE MODE // 2024.04.02 @ 12:29:23 Player: Aklangi Result: Destroyed self with Mini Grenade Launcher Performance ------------- Evolutions (3) 1500 Regions Visited (7) 1400 Robots Destroyed (35) 175 Value Destroyed (902) 902 Prototype IDs (7) 140 Alien Tech Used (0) 0 Bonus (321) 321 TOTAL SCORE: 4438 Bonus ------- Follower Combat Kills 21 Aligned with FarCom 300 Cogmind --------- Core Integrity 0/700 Matter 233/300 Energy 100/100 System Corruption 4% Temperature Cool (0) Movement Core (50) Location -7/Lower Caves Parts ------- > --- POWER (1) -------- (None) > --- PROPULSION (5) --- (None) > --- UTILITY (5) ------ (None) > --- WEAPON (2) ------- Mini Grenade Launcher > --- INVENTORY (5) ---- Enhanced Nuclear Core Medium Storage Unit Advanced ECM Suite Peak State ------------ > --- POWER ------------ Light Ion Engine > --- PROPULSION ------- Flight Unit Flight Unit Surge Thruster Improved VTOL Module > --- UTILITY ---------- Small Storage Unit Targeting Computer Reaction Control System Hacking Suite > --- WEAPON ----------- Light Assault Rifle Great Maul > --- INVENTORY -------- Improved Ion Engine Medium Storage Unit Beam Rifle Beam Rifle Light Assault Rifle Improved Grenade Launcher [Rating: 23] Favorites ----------- Power Light Ion Engine Engine Light Ion Engine Power Core Nuclear Core Propulsion Light Treads Treads Light Treads Flight Unit Flight Unit Utility Large Storage Unit Device Reaction Control System Storage Large Storage Unit Processor Targeting Computer Hackware Hacking Suite Protection Makeshift Light Armor Plating Weapon Light Assault Rifle Energy Gun Medium Laser Ballistic Gun Light Assault Rifle Launcher Mini Grenade Launcher Impact Weapon Power Maul Slashing Weapon Blade Saw Build | -11 -10 -10 -10 -9 -8 -7 -7 ------- Run | Yrd Mat Min Exi Min Mat Fac Low Slots Evolved 6 | . . . . . 4 2 . Power . | . . . . . . . . Propulsion 3 | . . . . . 2 1 . Utility 3 | . . . . . 2 1 . Weapon . | . . . . . . . . Parts Attached 51 | 6 2 1 1 3 21 9 8 Power 8 | 1 . . 1 . 1 3 2 Engine 6 | 1 . . 1 . 1 2 1 Core 2 | . . . . . . 1 1 Reactor . | . . . . . . . . Propulsion 10 | 2 . . . . 7 . 1 Treads 3 | 2 . . . . . . 1 Leg . | . . . . . . . . Wheel . | . . . . . . . . Hover . | . . . . . . . . Flight 7 | . . . . . 7 . . Utility 9 | 1 2 . . 1 3 . 2 Device 1 | . . . . . 1 . . Storage 3 | 1 1 . . . 1 . . Processor 3 | . 1 . . 1 . . 1 Hackware 1 | . . . . . 1 . . Protection 1 | . . . . . . . 1 Artifact . | . . . . . . . . Weapon 24 | 2 . 1 . 2 10 6 3 Energy Gun 3 | 1 . . . . 2 . . Energy Cannon . | . . . . . . . . Ballistic Gun 10 | 1 . 1 . 2 4 . 2 Ballistic Cannon . | . . . . . . . . Launcher 3 | . . . . . 2 . 1 Special Weapon . | . . . . . . . . Impact Weapon 7 | . . . . . 1 6 . Slashing Weapon 1 | . . . . . 1 . . Piercing Weapon . | . . . . . . . . Special Melee Weapon . | . . . . . . . . Unidentified Prototypes 3 | . . . 1 . 1 1 . Parts Lost 15 | . . . . . 2 1 12 Power 3 | . . . . . . . 3 Propulsion 6 | . . . . . 2 . 4 Utility 4 | . . . . . . 1 3 Weapon 2 | . . . . . . . 2 Highest Loss Streak 5 | . . . . . 2 1 5 To Critical Strikes . | . . . . . . . . Average Slot Usage (%) 83 | . 88 97 85 94 85 65 32 Engine 10 | . 14 11 8 14 9 6 1 Treads 20 | . 28 28 28 28 . . 2 Flight 6 | . . . . . 34 24 8 Device 1 | . . . . . 6 7 . Storage 12 | . 14 14 14 14 9 7 4 Processor 7 | . 2 14 6 8 9 4 . Hackware 1 | . . . . . . 7 3 Energy Gun 7 | . 14 14 14 2 3 . . Ballistic Gun 14 | . 14 14 14 26 9 1 1 Impact Weapon 1 | . . . . . 3 3 4 Naked Turns 11 | . . . . . . . 11 Heaviest Build 29 | 11 26 26 28 29 29 14 12 Greatest Support 40 | 40 40 40 40 40 40 16 20 Greatest Overweight (x) 3 | . . . . . 2 1 3 Average Overweight (x) . | . . . . . . . . Largest Inventory Capacity 15 | 8 15 15 15 15 15 8 8 Average Capacity 12 | 6 13 15 15 15 8 8 6 Most Carried 8 | 1 3 4 4 7 8 8 6 Average Carried 4 | . 2 3 3 4 6 6 4 Final Capacity 15 | 8 15 15 15 15 8 8 5 Final Carried 7 | 1 3 4 3 7 7 6 3 Class Distribution -------------------- 85% | Mutant 7% | Scavenger-Sprinter 6% | Sprinter Dominant Class ---------------- Mutant | -10/Materials Mutant | -10/Mines Mutant | -10/Exiles Mutant | -9/Mines Scavenger-Sprinter | -8/Materials Sprinter | -7/Factory Mutant | -7/Lower Caves Resources | -11 -10 -10 -10 -9 -8 -7 -7 ----------- Run | Yrd Mat Min Exi Min Mat Fac Low Matter Collected 918 | 200 90 44 . 121 240 39 184 Remotely . | . . . . . . . . Salvage Created 1024 | . 163 252 . 124 47 93 345 Parts 41 | . 12 15 . 5 5 2 2 Haulers Intercepted 3 | . 1 . . . . 2 . Recyclers Shooed 4 | . 2 1 . 1 . . . Parts Field Recycled . | . . . . . . . . Retrieved Matter . | . . . . . . . . Parts Self-Destructed . | . . . . . . . . Prevented 2 | . . . . . . . 2 Kills | -11 -10 -10 -10 -9 -8 -7 -7 ------- Run | Yrd Mat Min Exi Min Mat Fac Low Combat Hostiles Destroyed 29 | . 2 9 . 3 6 . 9 Melee 2 | . . . . . . . 2 Guns 17 | . 2 9 . 3 2 . 1 AOE 8 | . . . . . 4 . 4 Classes Destroyed 8 | . 3 2 . 1 1 . 1 Tunneler 1 | . . 1 . . . . . Hauler 3 | . 1 . . . . 2 . Operator 2 | . 1 . . . 1 . . Swarmer 11 | . . 5 . . 3 . 3 Cutter 3 | . . . . . 3 . . Grunt 12 | . 2 4 . 2 . . 4 Brawler 2 | . . . . 1 . . 1 Hunter 1 | . . . . . . . 1 Best Kill Streak 3 | . 2 3 . 3 3 1 3 Combat Bots Only 3 | . 2 3 . 3 3 . 3 Max Kills in Single Turn 2 | . 1 1 . 1 2 1 2 Gunslinging . | . . . . . . . . Exploded 2 | . . . . . 2 . 2 Melee 1 | . . . . . . . 1 Uniques/NPCs Destroyed . | . . . . . . . . Combat | -11 -10 -10 -10 -9 -8 -7 -7 -------- Run | Yrd Mat Min Exi Min Mat Fac Low Hostile Shots Fired 247 | . 2 49 . 6 25 21 144 Missed 88 | . . 16 . 4 11 15 42 Damage Taken 2404 | . 24 337 . 22 317 47 1657 Core 899 | . . 109 . . 81 29 680 Absorbed by Shields . | . . . . . . . . Core Remaining (%) 80 | 100 . . . 56 85 . . Volleys Fired 93 | . 18 34 . 10 5 . 26 Largest 2 | . 2 2 . 2 2 . 2 Hottest 92 | . 70 70 . 43 92 . 50 Shots Fired 161 | . 36 68 . 19 9 . 29 Gun 149 | . 36 68 . 19 5 . 21 Cannon . | . . . . . . . . Launcher 12 | . . . . . 4 . 8 Special . | . . . . . . . . Kinetic 94 | . 18 34 . 19 2 . 21 Thermal 55 | . 18 34 . . 3 . . Explosive 12 | . . . . . 4 . 8 Electromagnetic . | . . . . . . . . Robot Hit Streak 11 | . 5 11 . 5 2 . 5 Robot Miss Streak 6 | . 6 3 . 1 5 . 3 Penetration Max . | . . . . . . . . Secondary Targets 1 | . . 1 . . . . . Max Gunslinging Chain 1 | . . 1 . . . . . Shots Hit Robots 114 | . 16 47 . 13 4 4 30 Core Hits 54 | . 10 14 . 5 8 1 16 Critical Kills 1 | . . . . . . 1 . Critical Parts Destroyed 5 | . . . . . . 1 4 Critical Strikes 9 | . . 2 . . 1 2 4 Burn 3 | . . 2 . . 1 . . Smash 6 | . . . . . . 2 4 Melee Attacks 44 | . . . . . 12 19 13 Impact 41 | . . . . . 9 19 13 Slashing 3 | . . . . . 3 . . Piercing . | . . . . . . . . Sneak Attacks 3 | . . . . . . 2 1 Combat Hostiles 1 | . . . . . . . 1 Follow-up Attacks . | . . . . . . . . Damage Inflicted 2823 | . 167 515 . 152 404 290 1295 Guns 1003 | . 160 485 . 152 38 . 168 Cannons . | . . . . . . . . Explosions 887 | . . . . . 321 . 566 Melee 896 | . . . . . 45 290 561 Ramming 37 | . 7 30 . . . . . Kinetic 572 | . 69 173 . 152 10 . 168 Thermal 431 | . 91 312 . . 28 . . Explosive 887 | . . . . . 321 . 566 Electromagnetic . | . . . . . . . . Impact 896 | . . . . . 45 290 561 Slashing . | . . . . . . . . Piercing . | . . . . . . . . Highest Corruption 4 | . 1 1 1 1 . . 4 Average Corruption 1 | . 1 1 1 1 . . 4 Corruption Purged . | . . . . . . . . Corruption Blocked . | . . . . . . . . Effects 16 | . 1 4 3 4 . . 4 Message Errors 2 | . . 1 . . . . 1 Matter Fused 7 | . . . 2 2 . . 3 Heat Flow Errors 2 | . . 1 . 1 . . . Energy Discharges 2 | . 1 . 1 . . . . Parts Rejected 1 | . . 1 . . . . . Data Loss (major) 1 | . . 1 . . . . . Weapon Failures 1 | . . . . 1 . . . Overload Shots . | . . . . . . . . Overflow Damage 520 | . . . . . 30 73 417 Projectiles . | . . . . . . . . Explosions 65 | . . . . . 15 . 50 Melee 455 | . . . . . 15 73 367 Knockbacks 2 | . . 1 . . . . 1 Impact 2 | . . 1 . . . . 1 Kinetic . | . . . . . . . . Secondary . | . . . . . . . . Self-Inflicted Damage 302 | . . . . . 49 . 253 Shots 8 | . . . . . 1 . 7 Rammed 6 | . 2 4 . . . . . Targets Rammed 7 | . 2 5 . . . . . Kicked . | . . . . . . . . Crushed 1 | . . 1 . . . . . Highest Temperature 279 | . 90 157 . 279 47 . 17 Average Temperature 47 | . 34 59 . 69 18 . 8 Received Heat Transfer 762 | . 12 96 . 12 36 12 594 Siege Activations . | . . . . . . . . Robots Corrupted . | . . . . . . . . Combat Hostiles . | . . . . . . . . Parts Fried 8 | . . . . . 2 2 4 Impact Corruptions 18 | . . . . . 1 3 14 Robots Melted . | . . . . . . . . Combat Hostiles . | . . . . . . . . Parts Melted 2 | . . 2 . . . . . Heat Transferred 1480 | . 259 1073 . . 148 . . Parts Sabotaged . | . . . . . . . . Parts Stolen . | . . . . . . . . Parts Stripped . | . . . . . . . . Power Chain Reactions . | . . . . . . . . Alert | -11 -10 -10 -10 -9 -8 -7 -7 ------- Run | Yrd Mat Min Exi Min Mat Fac Low Peak Influence 394 | . 92 195 . 148 394 223 . Initial 135 | . . 35 . . 57 135 . Average 98 | . 57 90 . 49 254 161 . Maximum Alert Level 1 | . . . . . 1 1 . Low Security (%) 88 | 100 100 100 . 100 28 84 . Level 1 11 | . . . . . 71 15 . Level 2 . | . . . . . . . . Level 3 . | . . . . . . . . Level 4 . | . . . . . . . . Level 5 . | . . . . . . . . High Security . | . . . . . . . . Max Security . | . . . . . . . . Squads Dispatched 5 | . 3 . . . 1 1 . Investigation 1 | . 1 . . . . . . Extermination . | . . . . . . . . Reinforcement 4 | . 2 . . . 1 1 . Assault . | . . . . . . . . Garrison . | . . . . . . . . Intercept . | . . . . . . . . Searches Triggered . | . . . . . . . . Construction Impeded . | . . . . . . . . Haulers Reinforced . | . . . . . . . . Active Scanning Responses . | . . . . . . . . Cargo Convoy Interrupts . | . . . . . . . . Stealth | -11 -10 -10 -10 -9 -8 -7 -7 --------- Run | Yrd Mat Min Exi Min Mat Fac Low Distress Signals 2 | . . 1 . . 1 . . Communications Jammed . | . . . . . . . . Distress Signals . | . . . . . . . . Times Spotted 58 | . 8 9 . 3 16 3 19 Peak Tracking Total 6 | . 3 3 . 3 6 2 5 Tactical Retreats 10 | . . . . . 4 1 5 Traps | -11 -10 -10 -10 -9 -8 -7 -7 ------- Run | Yrd Mat Min Exi Min Mat Fac Low Traps Triggered 1 | . . . . . . 1 . Indirectly . | . . . . . . . . Trap Hack Attempts . | . . . . . . . . Triggered . | . . . . . . . . Disarmed . | . . . . . . . . Reprogrammed . | . . . . . . . . Reused . | . . . . . . . . Traps Extracted . | . . . . . . . . Installed . | . . . . . . . . Triggered . | . . . . . . . . Most Traps Carried 1 | . . . . 1 1 . . Machines | -11 -10 -10 -10 -9 -8 -7 -7 ---------- Run | Yrd Mat Min Exi Min Mat Fac Low Machines Disabled 2 | . . . . . 2 . . Max in Single Turn 1 | . . . . . 1 . . Machines Repaired . | . . . . . . . . Machines Dismantled . | . . . . . . . . Machines Sabotaged . | . . . . . . . . Overloaded Fab Kills . | . . . . . . . . Hacking | -11 -10 -10 -10 -9 -8 -7 -7 --------- Run | Yrd Mat Min Exi Min Mat Fac Low Machines Accessed 13 | . 1 . 3 . 7 2 . Terminals 7 | . . . . . 6 1 . Fabricators . | . . . . . . . . Repair Stations . | . . . . . . . . Recycling Units 1 | . 1 . . . . . . Scanalyzers 2 | . . . . . 1 1 . Garrison Access . | . . . . . . . . Total Hacks 53 | . 3 . 26 . 17 7 . Successful 42 | . 1 . 26 . 11 4 . Failed 11 | . 2 . . . 6 3 . Catastrophic 3 | . 1 . . . 2 . . Database Lockouts . | . . . . . . . . Manual 5 | . . . 1 . 4 . . Terminals 17 | . . . . . 13 4 . Fabricators . | . . . . . . . . Repair Stations . | . . . . . . . . Recycling Units 3 | . 3 . . . . . . Scanalyzers 7 | . . . . . 4 3 . Garrison Access . | . . . . . . . . Terminal Hacks 37 | . . . 26 . 8 3 . Record 26 | . . . 26 . . . . Part Schematic 1 | . . . . . 1 . . Prototype ID Bank 2 | . . . . . 2 . . Emergency Access Points 3 | . . . . . 2 1 . Alert Level 2 | . . . . . 1 1 . Unreport Threat 1 | . . . . . 1 . . Patrol Status 1 | . . . . . . 1 . Zone Layout 1 | . . . . . 1 . . Fabricator Hacks . | . . . . . . . . Repair Station Hacks . | . . . . . . . . Recycling Unit Hacks 1 | . 1 . . . . . . Report Inventory 1 | . 1 . . . . . . Scanalyzer 4 | . . . . . 3 1 . Insert Component 2 | . . . . . 1 1 . Analyze 2 | . . . . . 2 . . Garrison Access Hacks . | . . . . . . . . Unauthorized Hacks . | . . . . . . . . Terminals . | . . . . . . . . Fabricators . | . . . . . . . . Repair Stations . | . . . . . . . . Recycling Units . | . . . . . . . . Scanalyzers . | . . . . . . . . Garrison Access . | . . . . . . . . Data Cores Recovered 1 | . . . . . 1 . . Used . | . . . . . . . . Hacking Detections 7 | . 1 . . . 4 2 . Full Trace Events 1 | . 1 . . . . . . Feedback Events 1 | . 1 . . . . . . Corruption 1 | . 1 . . . . . . Feedback Blocked . | . . . . . . . . Robot Schematics Acquired . | . . . . . . . . Robots Built . | . . . . . . . . Authchips . | . . . . . . . . Time . | . . . . . . . . Total Robot Build Rating . | . . . . . . . . Part Schematics Acquired 2 | . . . . . 2 . . Parts Built . | . . . . . . . . Authchips . | . . . . . . . . Time . | . . . . . . . . Total Part Build Rating . | . . . . . . . . Parts Repaired . | . . . . . . . . Time . | . . . . . . . . Parts Recycled . | . . . . . . . . Recycled Matter . | . . . . . . . . Retrieved Matter . | . . . . . . . . Retrieved Components . | . . . . . . . . Parts Scanalyzed 2 | . . . . . 1 1 . Part Schematics Acquired 1 | . . . . . 1 . . Parts Damaged 1 | . . . . . . 1 . Bothacking | -11 -10 -10 -10 -9 -8 -7 -7 ------------ Run | Yrd Mat Min Exi Min Mat Fac Low Used RIF Installer . | . . . . . . . . Robots Hacked . | . . . . . . . . Non-combat . | . . . . . . . . Combat . | . . . . . . . . Robot Hacks Applied . | . . . . . . . . Relay Couplers Released . | . . . . . . . . Fabnet Peak Effective % . | . . . . . . . . Robots Rewired . | . . . . . . . . Allies Hacked . | . . . . . . . . Hacks Repelled . | . . . . . . . . Allies | -11 -10 -10 -10 -9 -8 -7 -7 -------- Run | Yrd Mat Min Exi Min Mat Fac Low Total Allies 2 | . . . . 2 . . . Largest Group 2 | . . . . 2 2 . . Highest-Rated Group 42 | . . . . 42 42 . . Highest-Rated Ally 31 | . . . . 31 31 . . Total Orders . | . . . . . . . . Ally Attacks 7 | . . . . 5 2 . . Total Damage 125 | . . . . 85 40 . . Kills 3 | . . . . 3 . . . Allies Corrupted . | . . . . . . . . Allies Melted . | . . . . . . . . Intel | -11 -10 -10 -10 -9 -8 -7 -7 ------- Run | Yrd Mat Min Exi Min Mat Fac Low Robot Analysis Total . | . . . . . . . . Derelict Logs Recovered 3 | . . 1 . 1 . . 1 Drone Launches . | . . . . . . . . Drone Recoveries . | . . . . . . . . Exploration | -11 -10 -10 -10 -9 -8 -7 -7 ------------- Run | Yrd Mat Min Exi Min Mat Fac Low Turns Passed 2884 | 63 353 513 460 700 279 247 269 Spaces Moved 2583 | 35 185 254 287 411 612 446 353 Core 27 | 2 . . . . . . 25 Treads 1193 | 33 185 254 287 411 1 . 22 Legs . | . . . . . . . . Wheels . | . . . . . . . . Hover . | . . . . . . . . Flight 1363 | . . . . . 611 446 306 Fastest Speed 28 | 50 160 160 160 160 28 28 32 Average Speed 91 | 153 160 160 160 160 30 33 46 Slowest Speed 200 | 160 160 160 160 160 197 98 200 Overloaded Moves . | . . . . . . . . Propulsion Burnouts . | . . . . . . . . Robots Hopped 1 | . . . . . 1 . . Cave-ins Triggered . | . . . . . . . . Time Travels 1 | . . . 1 . . . . Exploration Rate (%) 46 | 4 38 52 70 76 54 16 60 Regions Visited 7 Branch Regions 4 Pre-discovered Areas 2 | . . . . 2 . . . Known Exits Taken . | . . . . . . . . Unknown Exits Taken 7 | 1 1 1 1 1 1 1 . Scrap Searched 5 | . . . . 2 . . 3 Spaces Dug 23 | . . . . . 8 15 . Terrain Destroyed 119 | . . . . . 60 15 44 Melee 23 | . . . . . 8 15 . Projectile . | . . . . . . . . AOE 96 | . . . . . 52 . 44 Terrain Rammed . | . . . . . . . . Walls Destroyed . | . . . . . . . . Machines Disabled . | . . . . . . . . Actions | -11 -10 -10 -10 -9 -8 -7 -7 --------- Run | Yrd Mat Min Exi Min Mat Fac Low Total 2852 | 41 208 296 288 437 667 511 404 Wait 14 | . . 3 . 9 . . 2 Move 2574 | 34 184 253 286 410 609 445 353 Hop 1 | . . . . . 1 . . Pick Up 21 | 1 1 . 1 4 10 4 . Fast Attach 20 | 6 2 . . 1 4 1 6 Attach 11 | . . . 1 . 3 5 2 Detach 9 | . 1 . . . 1 7 . Swap 20 | . . 1 . 2 14 3 . Drop 20 | . . . . 1 8 9 2 Fire 93 | . 18 34 . 10 5 . 26 Melee 44 | . . . . . 12 19 13 Ram . | . . . . . . . . Kick . | . . . . . . . . Crush 7 | . 2 5 . . . . . Escape Stasis 18 | . . . . . . 18 . Rewire . | . . . . . . . . Trap . | . . . . . . . . Miscellaneous . | . . . . . . . . Route ------- -11/Scrapyard -10/Materials -10/Mines -10/Exiles -9/Mines (discovered 2 exits: *Mat x2) -8/Materials -7/Factory -7/Lower Caves History --------- Turn | Location | Event 10 | -11/Scrapyard | Discovered new exit (range 15) 64 | -11/Scrapyard | Entered Materials 312 | -10/Materials | Build established: Mutant 374 | -10/Materials | Discovered new exit (range 16) 417 | -10/Materials | Entered Mines 459 | -10/Mines | Met a Derelict bent on vengeance 657 | -10/Mines | Deemed a non-threat by the Exiles lab entrance 657 | -10/Mines | Discovered new exit (range 5) 930 | -10/Mines | Entered Exiles 975 | -10/Exiles | Met 8R-AWN 1004 | -10/Exiles | Met EX-HEX 1052 | -10/Exiles | Met EX-BIN 1071 | -10/Exiles | Aligned with FarCom system 1073 | -10/Exiles | Given EX-Vault access code 1144 | -10/Exiles | Opened EX-Vault 1151 | -10/Exiles | Found Prototype Device 1152 | -10/Exiles | Identified Chronowheel 1152 | -10/Exiles | Activated Chronowheel 1152 | -10/Exiles | Spacetime reconverged on an earlier point 1185 | -10/Exiles | Warned to stay clear of 0b10 Research branches 1230 | -10/Exiles | Met EX-DEC 1369 | -10/Exiles | Discovered new exit (range 14) 1390 | -10/Exiles | Entered Mines 1422 | -9/Mines | Found a hidden stash of uninstalled traps 1453 | -9/Mines | Discovered new exit (range 10) 1455 | -9/Mines | Discovered new exit (range 9) 1587 | -9/Mines | Learned location of Zion (-6) 1685 | -9/Mines | Learned location of Storage (-9) 1911 | -9/Mines | Assembled infested the area 2090 | -9/Mines | Entered Materials 2090 | -8/Materials | Accompanied by 2 allies 2090 | -8/Materials | Evolved 4 slots: Propulsion x2, Utility x2 2095 | -8/Materials | Led the pair of lost Derelicts to an unsafe place 2350 | -8/Materials | Discovered new exit (range 9) 2369 | -8/Materials | Entered Factory 2369 | -7/Factory | Evolved 2 slots: Propulsion x1, Utility x1 2554 | -7/Factory | Discovered new exit (range 16) 2616 | -7/Factory | Entered Lower Caves 2652 | -7/Lower Caves | Learned location of 1 exit from Factory 2662 | -7/Lower Caves | Lost 3 parts (1p1n1u) 2718 | -7/Lower Caves | Attracted the attention of an 0b10 checkpoint 2799 | -7/Lower Caves | Lost 3 parts (2n1u) 2802 | -7/Lower Caves | Core integrity fell below 50% 2881 | -7/Lower Caves | Core integrity fell below 20% 2885 | -7/Lower Caves | Destroyed self with Mini Grenade Launcher Last Messages --------------- 02846_ Found Mak. Terrain Scan Processor. 02846_ Found Battle Rifle. 02846_ Found 30 Matter. 02847_ Acquired 19 matter. 02849_ Acquired Battle Rifle. 02851_ Acquired 10 matter. 02853_ Acquired 1 matter. 02856_ G-47 Trooper misfires. 02864_ Spk. Treads destroyed. 02868_ G-47 Trooper destroyed. 02871_ Acquired Mak. Salvage Targeting Computer. 02873_ AJAGIW#FMKRP7X 7PINETMH 02874_ Lgt. Deuterium Engine destroyed. 02875_ Battle Rifle destroyed. 02877_ G-47 Trooper destroyed. 02877_ Mak. Light Armor Plating destroyed. 02879_ G-47 Trooper destroyed. 02879_ Mak. Salvage Targeting Computer destroyed. 02879_ Destroyed Mak. Salvage Targeting Computer. 02885_ The unstable cave ceiling collapses. Map ----- +----------------------------------------------------+ | ########### ####### ### #### | | ## #### # | | ###?# # | | #### #???## # | | ##??# #?## ##### | | ##??# ##??## ### ##???? | | ### ##??# ## ##????####??# #????? | | ###?## #???# ##### ??????????### # #???? | | ?????###???# #???? ??????????# ## | | ?#########?# ##???? ???????### #?# | | ## #?### #????? ?????## #??# | | # #???# ?????# ### ## % #???####### | | #???# ????# ##?????????? | | #???# ???? ## %%! ##??????????? | | #???# ???????? ???###%#####???????????? | | ## #????#???????# ??????#%????????????????? | | ###???????????????? ?????? ?????????????????? | | #?????????????????? ????? ??????????????????? | | #??????????????????# ???? ????##?????????????? | | #??????????????#???# ???##???# #?????????????? | | # #??????????????# ??# ##????## ##????????????? | | # #??????????????# ## # ##??# #????????????? | | #######????????# # # ### #????????????? | | ?# # #?????????????? | | ########??????# # # #?????????????? | | ####?????????? # Y @ #????????????? | | #??????????# #### #???????????? | | #?????????# = ####????????????????? | | # #?????????## % % #????????????????? | | # ##??????????## # #????????????????? | | #????????????#?# """ " #????????????????? | | #?????#?????##?# $ """"""" ######???????????? | | ###### #????? """""""%## ####????????? | | ## ???##?? ##### """ " #????????? | | ## #?### #?# #???# #????????? | | ### #?# #???# [ # ##????????? | | ## #??# #??## /! ## ###???????? | | # #??# #?## #### #???????? | | # #?## #?# % # #???????? | | # ##### ### ### ### # #???????? | | #####???# ## ## #?# # # %% ##???????? | | ????????## % #?# ????????? | | ?????????## ### ????????? | | ??????????# #### ## ### ##???????? | | ??????????## ## ####### #????????? | | ???????????## #?????# ##????????? | | ????????????## #???###### #?????????? | | ?????????????#### #????????# #?????????? | | ????????????????## ##????????## ##?????????? | | ?????????????????#######??????????#####??????????? | +----------------------------------------------------+ Best States ------------- Heat Dissipation 34 Energy Generation 14 Energy Capacity 250 Matter Stores 300 Matter Capacity 300 Sight Range 16 Terrain Scan Density 10 Armor Coverage 100 Evasion (%) 72 Targeting Accuracy 5 Recoil Reduction 2 Offensive Hacking 10 Item Schematics ----------------- Flight Unit | -8/Materials | Hacked Surge Thruster | -8/Materials | Scanalyzed Robot Schematics ------------------ None Fabricated ------------ Nothing Alien Tech Used ----------------- None Achievements -------------- Part-time Excavator Challenges ------------ None Game ------ Seed MetaVortexPlating Manual? 0 Play Time 00:40:47 Cumulative 9.6 hours Start 2024.04.02 @ 11:51:56 End 2024.04.02 @ 12:29:23 Sessions 1 Manual Loads 0 Difficulty Rogue Special Mode None Game No. 19 Rogue 19 Adventurer 0 Explorer 0 Win Type - Total 0 Types 0/0/0/0/0/0/0/0/0 Lore% 17 Gallery% 21 Achievement% 20 Wizard Run 0 Options --------- Layout 0 ASCII 0 Keyboard 0 Movement Mouse Keybinds 0 Fullscreen 1 Font 18/SmallcapsGlow Map View 76x50 Zoom Use 15% Tactical HUD 1 Map Filters NONE Filters NONE Steam 1 RUN: 89d39433-3fa4-4bb8-bf5b-98f720ebd801